[Event "*** Titled Tuesday Blitz"]
[Site "Chess.com"]
[Date "2021.03.09"]
[Round "5"]
[White "Sychev_Klementy"]
[Black "Mikasinski"]
[Result "1-0"]
[WhiteElo "2879"]
[BlackElo "2469"]
[TimeControl "180+1"]
[EndTime "10:57:47 PST"]
[Termination "Sychev_Klementy won by resignation"]

1. e4 {[%clk 0:03:00.9]} 1... c5 {[%clk 0:02:58.9]} 2. d4 {[%clk 0:02:58.6]}
2... cxd4 {[%clk 0:02:58.8]} 3. c3 {[%clk 0:02:59]} 3... Nf6 {[%clk 0:02:58.7]}
4. e5 {[%clk 0:02:56.8]} 4... Nd5 {[%clk 0:02:58.9]} 5. Nf3 {[%clk 0:02:55.4]}
5... e6 {[%clk 0:02:59]} 6. cxd4 {[%clk 0:02:54.8]} 6... d6 {[%clk 0:02:58.2]}
7. Bc4 {[%clk 0:02:53.5]} 7... Be7 {[%clk 0:02:56.2]} 8. O-O {[%clk 0:02:53.5]}
8... Nc6 {[%clk 0:02:55.4]} 9. a3 {[%clk 0:02:50.8]} 9... O-O {[%clk 0:02:55.2]}
10. Bd3 {[%clk 0:02:45]} 10... f5 {[%clk 0:02:36.3]} 11. exd6 {[%clk 0:02:38]}
11... Qxd6 {[%clk 0:02:34.5]} 12. Nc3 {[%clk 0:02:37.9]} 12... Nxc3 {[%clk
0:02:16.5]} 13. bxc3 {[%clk 0:02:36.6]} 13... Bd7 {[%clk 0:02:13.3]} 14. Re1
{[%clk 0:02:33.8]} 14... Rad8 {[%clk 0:02:00.6]} 15. a4 {[%clk 0:02:31.5]} 15...
Rfe8 {[%clk 0:01:51.8]} 16. Bc4 {[%clk 0:02:24.2]} 16... Bf6 {[%clk 0:01:46]}
17. Ba3 {[%clk 0:02:19.6]} 17... Qf4 {[%clk 0:01:41.8]} 18. g3 {[%clk
0:02:13.3]} 18... Qg4 {[%clk 0:01:40.7]} 19. Kg2 {[%clk 0:02:10.2]} 19... Na5
{[%clk 0:01:34]} 20. h3 {[%clk 0:02:07.1]} 20... Qh5 {[%clk 0:01:31.7]} 21. Bb5
{[%clk 0:02:06.3]} 21... Bxb5 {[%clk 0:01:30.7]} 22. axb5 {[%clk 0:02:05.8]}
22... Nc4 {[%clk 0:01:31.4]} 23. Bc5 {[%clk 0:02:02.7]} 23... b6 {[%clk
0:01:30.8]} 24. Bb4 {[%clk 0:02:02.2]} 24... Qf7 {[%clk 0:01:24.5]} 25. Qb3
{[%clk 0:01:59.3]} 25... Rc8 {[%clk 0:01:21.4]} 26. Qa2 {[%clk 0:01:38.2]} 26...
Rc7 {[%clk 0:01:16.6]} 27. Re2 {[%clk 0:01:36]} 27... e5 {[%clk 0:01:06.9]} 28.
dxe5 {[%clk 0:01:31.9]} 28... Nxe5 {[%clk 0:01:07]} 29. Qxf7+ {[%clk 0:01:28.6]}
29... Kxf7 {[%clk 0:01:07.9]} 30. Bd6 {[%clk 0:01:20.6]} 30... Nxf3 {[%clk
0:00:49.3]} 31. Rxe8 {[%clk 0:01:19]} 31... Rd7 {[%clk 0:00:45.4]} 32. Rf8+
{[%clk 0:01:17.8]} 32... Kg6 {[%clk 0:00:41.7]} 33. Bb8 {[%clk 0:01:14.3]} 33...
Bxc3 {[%clk 0:00:38.3]} 34. Rxa7 {[%clk 0:01:10.4]} 34... Ne1+ {[%clk
0:00:38.7]} 35. Kf1 {[%clk 0:01:09.9]} 35... Rd5 {[%clk 0:00:31.1]} 36. Rc7
{[%clk 0:01:05.6]} 36... Ba5 {[%clk 0:00:30.2]} 37. Rc6+ {[%clk 0:01:05.7]}
37... Kh5 {[%clk 0:00:28.7]} 38. Rxf5+ {[%clk 0:01:02.7]} 38... Rxf5 {[%clk
0:00:28.3]} 39. g4+ {[%clk 0:01:02.9]} 39... Kg5 {[%clk 0:00:28.8]} 40. gxf5
{[%clk 0:01:03]} 40... Kxf5 {[%clk 0:00:27.3]} 41. Bc7 {[%clk 0:01:03.4]} 1-0

[Event "*** Titled Tuesday Blitz"]
[Site "Chess.com"]
[Date "2021.03.09"]
[Round "5"]
[White "Alexsur1981"]
[Black "NateSolon"]
[Result "1-0"]
[WhiteElo "2836"]
[BlackElo "2601"]
[TimeControl "180+1"]
[EndTime "10:57:48 PST"]
[Termination "Alexsur1981 won by resignation"]

1. e4 {[%clk 0:02:56.2]} 1... c5 {[%clk 0:02:59.9]} 2. Nc3 {[%clk 0:02:52.3]}
2... d6 {[%clk 0:02:59.6]} 3. f4 {[%clk 0:02:50.2]} 3... g6 {[%clk 0:02:59.1]}
4. d4 {[%clk 0:02:49.8]} 4... cxd4 {[%clk 0:02:52]} 5. Qxd4 {[%clk 0:02:50.7]}
5... Nf6 {[%clk 0:02:52.1]} 6. Nf3 {[%clk 0:02:50.7]} 6... Bg7 {[%clk
0:02:50.6]} 7. Bd3 {[%clk 0:02:50.7]} 7... O-O {[%clk 0:02:50.3]} 8. Qf2 {[%clk
0:02:50.6]} 8... Nc6 {[%clk 0:02:47.8]} 9. O-O {[%clk 0:02:49.2]} 9... a6 {[%clk
0:02:45.3]} 10. h3 {[%clk 0:02:47.7]} 10... b5 {[%clk 0:02:45.1]} 11. a3 {[%clk
0:02:41.7]} 11... Bb7 {[%clk 0:02:44.6]} 12. Be3 {[%clk 0:02:40.1]} 12... Rc8
{[%clk 0:02:39.6]} 13. Bb6 {[%clk 0:02:30.9]} 13... Qe8 {[%clk 0:02:32.3]} 14.
Rae1 {[%clk 0:02:26.2]} 14... Nd7 {[%clk 0:02:28.1]} 15. Be3 {[%clk 0:02:25.3]}
15... e6 {[%clk 0:02:19.4]} 16. Kh1 {[%clk 0:02:14.8]} 16... Qe7 {[%clk
0:02:19]} 17. Qg3 {[%clk 0:01:58.6]} 17... Na5 {[%clk 0:02:15.2]} 18. Bc1 {[%clk
0:01:50.7]} 18... Nc4 {[%clk 0:02:10.9]} 19. Nd1 {[%clk 0:01:48.3]} 19... Rfe8
{[%clk 0:01:48.3]} 20. c3 {[%clk 0:01:46.8]} 20... a5 {[%clk 0:01:45.7]} 21. Ne3
{[%clk 0:01:44]} 21... Nxe3 {[%clk 0:01:40.8]} 22. Bxe3 {[%clk 0:01:44.9]} 22...
Nc5 {[%clk 0:01:34.6]} 23. Bxc5 {[%clk 0:01:29.2]} 23... Rxc5 {[%clk 0:01:35.5]}
24. f5 {[%clk 0:01:23.1]} 24... Qc7 {[%clk 0:01:23.9]} 25. Nd4 {[%clk
0:01:18.5]} 25... Qb6 {[%clk 0:01:17.8]} 26. f6 {[%clk 0:01:17.1]} 26... Bf8
{[%clk 0:01:15.8]} 27. Nc2 {[%clk 0:01:13.4]} 27... d5 {[%clk 0:01:11.7]} 28. e5
{[%clk 0:01:12.5]} 28... d4 {[%clk 0:01:07]} 29. cxd4 {[%clk 0:01:09.2]} 29...
Rc7 {[%clk 0:01:06.7]} 30. Rf2 {[%clk 0:01:04.9]} 30... b4 {[%clk 0:01:06.7]}
31. axb4 {[%clk 0:01:04.2]} 31... axb4 {[%clk 0:01:06.8]} 32. Qh4 {[%clk
0:00:56.1]} 32... b3 {[%clk 0:01:04.7]} 33. Ne3 {[%clk 0:00:54.9]} 33... Rd8
{[%clk 0:01:02.2]} 34. Rf4 {[%clk 0:00:50.6]} 34... Rcd7 {[%clk 0:00:54.9]} 35.
Ng4 {[%clk 0:00:47.3]} 35... Rxd4 {[%clk 0:00:52.2]} 36. Nh6+ {[%clk 0:00:46.5]}
1-0

[Event "*** Titled Tuesday Blitz"]
[Site "Chess.com"]
[Date "2021.03.09"]
[Round "5"]
[White "MatyChess1"]
[Black "Aleksey_Sorokin"]
[Result "0-1"]
[WhiteElo "2582"]
[BlackElo "2781"]
[TimeControl "180+1"]
[EndTime "10:57:48 PST"]
[Termination "Aleksey_Sorokin won by resignation"]

1. e4 {[%clk 0:03:00.9]} 1... c6 {[%clk 0:03:00]} 2. Nf3 {[%clk 0:03:01.3]} 2...
d5 {[%clk 0:03:00.9]} 3. Nc3 {[%clk 0:03:02.2]} 3... dxe4 {[%clk 0:03:01.3]} 4.
Nxe4 {[%clk 0:03:03.1]} 4... Nf6 {[%clk 0:03:01.9]} 5. Qe2 {[%clk 0:03:03.5]}
5... Nxe4 {[%clk 0:03:01.9]} 6. Qxe4 {[%clk 0:03:04.4]} 6... Qd5 {[%clk
0:03:01.8]} 7. Qh4 {[%clk 0:03:03.9]} 7... Qe6+ {[%clk 0:03:02]} 8. Be2 {[%clk
0:03:03.9]} 8... Qg4 {[%clk 0:03:02.2]} 9. Qg3 {[%clk 0:03:04.5]} 9... h6 {[%clk
0:03:02.2]} 10. d4 {[%clk 0:03:02.8]} 10... Qxg3 {[%clk 0:03:02.1]} 11. hxg3
{[%clk 0:03:02.7]} 11... Bg4 {[%clk 0:03:03]} 12. Bf4 {[%clk 0:03:00.5]} 12...
Nd7 {[%clk 0:03:02.2]} 13. O-O-O {[%clk 0:02:59]} 13... e6 {[%clk 0:02:58.8]}
14. Rhe1 {[%clk 0:02:57.2]} 14... Bxf3 {[%clk 0:02:57.5]} 15. Bxf3 {[%clk
0:02:55.5]} 15... O-O-O {[%clk 0:02:58.2]} 16. a3 {[%clk 0:02:53]} 16... Nf6
{[%clk 0:02:57.2]} 17. b4 {[%clk 0:02:51.6]} 17... Bd6 {[%clk 0:02:56.5]} 18.
Bd2 {[%clk 0:02:47.9]} 18... Bc7 {[%clk 0:02:52.5]} 19. c3 {[%clk 0:02:46.1]}
19... Rd7 {[%clk 0:02:51.6]} 20. Kc2 {[%clk 0:02:45.6]} 20... Rhd8 {[%clk
0:02:51.6]} 21. g4 {[%clk 0:02:44.7]} 21... Nd5 {[%clk 0:02:46.6]} 22. g3 {[%clk
0:02:44.6]} 22... Kb8 {[%clk 0:02:43.6]} 23. Rb1 {[%clk 0:02:43.2]} 23... Nb6
{[%clk 0:02:43.2]} 24. Bc1 {[%clk 0:02:29.4]} 24... a6 {[%clk 0:02:42.1]} 25.
Kb3 {[%clk 0:02:26.4]} 25... Ka7 {[%clk 0:02:35.7]} 26. a4 {[%clk 0:02:25.6]}
26... Nd5 {[%clk 0:02:35.6]} 27. Kc2 {[%clk 0:02:24]} 27... Bb6 {[%clk 0:02:34]}
28. g5 {[%clk 0:02:15.8]} 28... hxg5 {[%clk 0:02:27.2]} 29. Bxg5 {[%clk
0:02:15.4]} 29... f6 {[%clk 0:02:26.5]} 30. Bc1 {[%clk 0:02:01.8]} 30... e5
{[%clk 0:02:12.6]} 31. a5 {[%clk 0:00:56.8]} 31... Bc7 {[%clk 0:02:09.2]} 32. c4
{[%clk 0:00:55.6]} 32... Nxb4+ {[%clk 0:01:57]} 33. Rxb4 {[%clk 0:00:51.8]}
33... Bxa5 {[%clk 0:01:57.2]} 34. Ba3 {[%clk 0:00:43.6]} 34... Rxd4 {[%clk
0:01:56.1]} 35. Rbb1 {[%clk 0:00:34.6]} 35... Rxc4+ {[%clk 0:01:47.4]} 36. Kb2
{[%clk 0:00:28.5]} 36... Bxe1 {[%clk 0:01:43.9]} 37. Rxe1 {[%clk 0:00:28.4]}
37... Rd2+ {[%clk 0:01:37.6]} 38. Kb3 {[%clk 0:00:28.6]} 38... b5 {[%clk
0:01:25]} 39. Be2 {[%clk 0:00:27.9]} 39... Rcc2 {[%clk 0:01:14.7]} 40. Bf3
{[%clk 0:00:28.1]} 40... Kb6 {[%clk 0:01:11.5]} 41. Be4 {[%clk 0:00:28.7]} 41...
Rc4 {[%clk 0:01:09.7]} 42. f3 {[%clk 0:00:26.5]} 42... a5 {[%clk 0:01:09.8]} 43.
Bf8 {[%clk 0:00:22.9]} 43... a4+ {[%clk 0:01:09.6]} 44. Ka3 {[%clk 0:00:22.2]}
44... Rc3+ {[%clk 0:01:10.5]} 0-1

[Event "*** Titled Tuesday Blitz"]
[Site "Chess.com"]
[Date "2021.03.09"]
[Round "5"]
[White "Hongjin"]
[Black "BeanScreen"]
[Result "0-1"]
[WhiteElo "2493"]
[BlackElo "2684"]
[TimeControl "180+1"]
[EndTime "10:57:48 PST"]
[Termination "BeanScreen won by resignation"]

1. c4 {[%clk 0:03:00.9]} 1... e5 {[%clk 0:02:59.9]} 2. Nc3 {[%clk 0:02:56.8]}
2... Nf6 {[%clk 0:03:00]} 3. Nf3 {[%clk 0:02:56.2]} 3... Nc6 {[%clk 0:02:59.6]}
4. e4 {[%clk 0:02:55.6]} 4... Bb4 {[%clk 0:02:59.2]} 5. d3 {[%clk 0:02:54.4]}
5... d6 {[%clk 0:02:59]} 6. Bd2 {[%clk 0:02:53.4]} 6... Bg4 {[%clk 0:02:57.1]}
7. Be2 {[%clk 0:02:53.7]} 7... Bxf3 {[%clk 0:02:55.9]} 8. Bxf3 {[%clk
0:02:53.8]} 8... Nd4 {[%clk 0:02:56.8]} 9. O-O {[%clk 0:02:54.2]} 9... O-O
{[%clk 0:02:55.4]} 10. a3 {[%clk 0:02:54.1]} 10... Bc5 {[%clk 0:02:34.3]} 11. b4
{[%clk 0:02:51.9]} 11... Bb6 {[%clk 0:02:25.3]} 12. Na4 {[%clk 0:02:51.9]} 12...
Nd7 {[%clk 0:02:23.6]} 13. Nxb6 {[%clk 0:02:50.7]} 13... axb6 {[%clk 0:02:24.5]}
14. Bg4 {[%clk 0:02:50.4]} 14... Qe7 {[%clk 0:01:53.4]} 15. Bh3 {[%clk
0:02:35.1]} 15... Ra7 {[%clk 0:01:46.4]} 16. f4 {[%clk 0:01:49.8]} 16... Rfa8
{[%clk 0:01:42.2]} 17. a4 {[%clk 0:01:41.6]} 17... exf4 {[%clk 0:01:26.1]} 18.
Bxf4 {[%clk 0:01:29.9]} 18... Ne5 {[%clk 0:01:26.1]} 19. Be3 {[%clk 0:01:28.5]}
19... c5 {[%clk 0:01:18.7]} 20. Rf2 {[%clk 0:00:55.6]} 20... Nec6 {[%clk
0:00:59.7]} 21. b5 {[%clk 0:00:50.1]} 21... Ne5 {[%clk 0:00:58.3]} 22. Rfa2
{[%clk 0:00:44.5]} 22... Qf6 {[%clk 0:00:48.6]} 23. Bxd4 {[%clk 0:00:31]} 23...
cxd4 {[%clk 0:00:48.1]} 24. Rf2 {[%clk 0:00:15.3]} 24... Qg5 {[%clk 0:00:47.3]}
25. Qb3 {[%clk 0:00:11.4]} 25... Qe3 {[%clk 0:00:42.3]} 26. Rd1 {[%clk
0:00:09.2]} 26... Rxa4 {[%clk 0:00:41.2]} 0-1

[Event "*** Titled Tuesday Blitz"]
[Site "Chess.com"]
[Date "2021.03.09"]
[Round "5"]
[White "lachesisQ"]
[Black "BilodeauA"]
[Result "1-0"]
[WhiteElo "3091"]
[BlackElo "2907"]
[TimeControl "180+1"]
[EndTime "10:57:49 PST"]
[Termination "lachesisQ won by checkmate"]

1. e4 {[%clk 0:03:00.9]} 1... e5 {[%clk 0:03:00.2]} 2. Nf3 {[%clk 0:02:59.8]}
2... Nc6 {[%clk 0:03:00.8]} 3. d4 {[%clk 0:03:00.5]} 3... exd4 {[%clk
0:02:59.8]} 4. Nxd4 {[%clk 0:03:01.4]} 4... Bc5 {[%clk 0:02:59.5]} 5. Nxc6
{[%clk 0:03:01]} 5... bxc6 {[%clk 0:02:59.7]} 6. Nc3 {[%clk 0:03:00.2]} 6... Ne7
{[%clk 0:02:59.9]} 7. Bc4 {[%clk 0:02:57.1]} 7... O-O {[%clk 0:02:53.1]} 8. Bg5
{[%clk 0:02:56]} 8... d6 {[%clk 0:02:50.7]} 9. Qd2 {[%clk 0:02:55.4]} 9... Be6
{[%clk 0:02:39.4]} 10. Bb3 {[%clk 0:02:53.9]} 10... Qe8 {[%clk 0:02:36.1]} 11.
O-O-O {[%clk 0:02:49.4]} 11... Ng6 {[%clk 0:02:15.9]} 12. h4 {[%clk 0:02:47]}
12... Ne5 {[%clk 0:02:04.1]} 13. h5 {[%clk 0:02:46.2]} 13... f6 {[%clk
0:01:42.3]} 14. Be3 {[%clk 0:02:45.6]} 14... Bb6 {[%clk 0:01:39]} 15. h6 {[%clk
0:02:44]} 15... g6 {[%clk 0:01:37.7]} 16. f4 {[%clk 0:02:43.7]} 16... Nc4 {[%clk
0:01:33.4]} 17. Bxc4 {[%clk 0:02:43.3]} 17... Bxc4 {[%clk 0:01:34.3]} 18. g4
{[%clk 0:02:40.5]} 18... Qd7 {[%clk 0:01:22.1]} 19. f5 {[%clk 0:02:33.9]} 19...
Rae8 {[%clk 0:01:02]} 20. Bxb6 {[%clk 0:02:32.8]} 20... axb6 {[%clk 0:01:01.6]}
21. g5 {[%clk 0:02:33.5]} 21... gxf5 {[%clk 0:00:41.4]} 22. gxf6 {[%clk
0:02:31.6]} 22... Rxf6 {[%clk 0:00:38.9]} 23. Qd4 {[%clk 0:02:29.8]} 23... Qe6
{[%clk 0:00:33.9]} 24. Rhg1+ {[%clk 0:02:23.9]} 24... Kh8 {[%clk 0:00:32.9]} 25.
b3 {[%clk 0:01:53.5]} 25... Ba6 {[%clk 0:00:33]} 26. Rg7 {[%clk 0:01:53]} 26...
c5 {[%clk 0:00:27.2]} 27. Qa4 {[%clk 0:01:52.6]} 27... Bb7 {[%clk 0:00:20.6]}
28. Rxc7 {[%clk 0:01:37.2]} 28... Bxe4 {[%clk 0:00:20.9]} 29. Rxd6 {[%clk
0:01:03.3]} 29... Qxd6 {[%clk 0:00:15.6]} 30. Qxe8+ {[%clk 0:01:02.5]} 30... Rf8
{[%clk 0:00:16.3]} 31. Qe7 {[%clk 0:00:58.8]} 31... Qf4+ {[%clk 0:00:15.8]} 32.
Kb2 {[%clk 0:00:57.7]} 32... Qxh6 {[%clk 0:00:16.7]} 33. Rd7 {[%clk 0:00:51.5]}
33... Qf6 {[%clk 0:00:16.6]} 34. Qxh7# {[%clk 0:00:50.9]} 1-0

[Event "*** Titled Tuesday Blitz"]
[Site "Chess.com"]
[Date "2021.03.09"]
[Round "5"]
[White "SHIVACalypso"]
[Black "Trankuilizer"]
[Result "0-1"]
[WhiteElo "2370"]
[BlackElo "2587"]
[TimeControl "180+1"]
[EndTime "10:57:50 PST"]
[Termination "Trankuilizer won by resignation"]

1. Nf3 {[%clk 0:03:00.9]} 1... Nf6 {[%clk 0:02:59.4]} 2. c4 {[%clk 0:03:00.8]}
2... g6 {[%clk 0:02:59.7]} 3. g3 {[%clk 0:03:00.6]} 3... Bg7 {[%clk 0:03:00.6]}
4. Bg2 {[%clk 0:03:01]} 4... O-O {[%clk 0:03:01.5]} 5. O-O {[%clk 0:03:01.5]}
5... d6 {[%clk 0:03:02]} 6. Nc3 {[%clk 0:03:01.9]} 6... Nbd7 {[%clk 0:03:02.9]}
7. d3 {[%clk 0:03:02.2]} 7... e5 {[%clk 0:03:03.4]} 8. Rb1 {[%clk 0:03:02.3]}
8... Re8 {[%clk 0:03:02.8]} 9. Nd2 {[%clk 0:02:55.4]} 9... a5 {[%clk 0:02:57]}
10. a3 {[%clk 0:02:55.4]} 10... Nc5 {[%clk 0:02:56.5]} 11. b4 {[%clk 0:02:54.8]}
11... axb4 {[%clk 0:02:57.4]} 12. axb4 {[%clk 0:02:55.3]} 12... Ne6 {[%clk
0:02:58.3]} 13. Bb2 {[%clk 0:02:53.9]} 13... Nd4 {[%clk 0:02:55]} 14. e3 {[%clk
0:02:47.9]} 14... Nc6 {[%clk 0:02:47.3]} 15. b5 {[%clk 0:02:44.7]} 15... Nb4
{[%clk 0:02:47.3]} 16. Nde4 {[%clk 0:02:30.3]} 16... Nxe4 {[%clk 0:01:49.6]} 17.
Nxe4 {[%clk 0:02:26.4]} 17... d5 {[%clk 0:01:49.5]} 18. Nc5 {[%clk 0:01:51.7]}
18... Qd6 {[%clk 0:01:36.2]} 19. Bc3 {[%clk 0:01:34.7]} 19... Na2 {[%clk
0:01:29.6]} 20. Bb2 {[%clk 0:00:44.9]} 20... Qxc5 {[%clk 0:01:27.7]} 21. Qb3
{[%clk 0:00:43.7]} 21... dxc4 {[%clk 0:01:19.6]} 22. dxc4 {[%clk 0:00:43.2]}
22... Be6 {[%clk 0:01:20]} 23. Bd5 {[%clk 0:00:33.8]} 23... Bxd5 {[%clk
0:00:56.6]} 24. cxd5 {[%clk 0:00:34.7]} 24... Qb4 {[%clk 0:00:57.1]} 25. Qxb4
{[%clk 0:00:18.5]} 25... Nxb4 {[%clk 0:00:56.5]} 26. Rfd1 {[%clk 0:00:18.8]}
26... Nc2 {[%clk 0:00:47]} 27. Rd2 {[%clk 0:00:15.1]} 27... Na3 {[%clk
0:00:46.5]} 28. Rc1 {[%clk 0:00:10]} 28... Nxb5 {[%clk 0:00:45.9]} 0-1

[Event "*** Titled Tuesday Blitz"]
[Site "Chess.com"]
[Date "2021.03.09"]
[Round "5"]
[White "Mazetovic"]
[Black "djano"]
[Result "1-0"]
[WhiteElo "2678"]
[BlackElo "2475"]
[TimeControl "180+1"]
[EndTime "10:57:52 PST"]
[Termination "Mazetovic won by resignation"]

1. e4 {[%clk 0:03:00.9]} 1... c5 {[%clk 0:02:59.4]} 2. Nf3 {[%clk 0:03:00.6]}
2... Nc6 {[%clk 0:02:59]} 3. Bb5 {[%clk 0:03:00.6]} 3... g6 {[%clk 0:02:57]} 4.
O-O {[%clk 0:02:59.8]} 4... Bg7 {[%clk 0:02:55.2]} 5. Re1 {[%clk 0:02:51.7]}
5... Nf6 {[%clk 0:02:53.3]} 6. e5 {[%clk 0:02:51.8]} 6... Nd5 {[%clk 0:02:53.4]}
7. Nc3 {[%clk 0:02:52.4]} 7... Nc7 {[%clk 0:02:49.8]} 8. Bxc6 {[%clk 0:02:53]}
8... dxc6 {[%clk 0:02:45.5]} 9. Ne4 {[%clk 0:02:53.8]} 9... b6 {[%clk
0:02:41.5]} 10. d3 {[%clk 0:02:53.8]} 10... Ne6 {[%clk 0:02:22.4]} 11. Be3
{[%clk 0:02:53]} 11... Nd4 {[%clk 0:02:16.5]} 12. Nxd4 {[%clk 0:02:52.4]} 12...
cxd4 {[%clk 0:02:16.4]} 13. Bf4 {[%clk 0:02:53.1]} 13... h6 {[%clk 0:01:54.6]}
14. h4 {[%clk 0:02:50.5]} 14... Be6 {[%clk 0:01:38.9]} 15. Qd2 {[%clk
0:02:49.7]} 15... Qd7 {[%clk 0:01:31.7]} 16. a4 {[%clk 0:02:47]} 16... Kf8
{[%clk 0:01:09.2]} 17. a5 {[%clk 0:02:45.5]} 17... Rc8 {[%clk 0:01:06.3]} 18.
axb6 {[%clk 0:02:44.1]} 18... axb6 {[%clk 0:01:07.2]} 19. Ra6 {[%clk 0:02:44.4]}
19... Rb8 {[%clk 0:00:57.9]} 20. Rea1 {[%clk 0:02:43]} 20... Kg8 {[%clk
0:00:49.7]} 21. Qb4 {[%clk 0:02:40.2]} 21... Qd8 {[%clk 0:00:38.1]} 22. Ra7
{[%clk 0:02:35.8]} 22... Bf8 {[%clk 0:00:33.3]} 23. Qd2 {[%clk 0:01:59.9]} 23...
c5 {[%clk 0:00:30.4]} 24. f3 {[%clk 0:02:00]} 24... c4 {[%clk 0:00:28.6]} 25.
dxc4 {[%clk 0:01:57.3]} 25... Bxc4 {[%clk 0:00:29.5]} 26. b3 {[%clk 0:01:57.1]}
26... Be6 {[%clk 0:00:29.1]} 27. R1a4 {[%clk 0:01:55.9]} 27... b5 {[%clk
0:00:27.4]} 28. Rxd4 {[%clk 0:01:51.4]} 28... Qb6 {[%clk 0:00:27.5]} 29. Ra1
{[%clk 0:01:50.7]} 29... Bg7 {[%clk 0:00:21.5]} 30. Rd1 {[%clk 0:01:46.9]} 30...
Kh7 {[%clk 0:00:19.9]} 31. Kh2 {[%clk 0:01:47.1]} 31... Rhc8 {[%clk 0:00:18.4]}
32. b4 {[%clk 0:01:39.5]} 32... Qc6 {[%clk 0:00:18]} 33. Nc5 {[%clk 0:01:38.8]}
33... Bc4 {[%clk 0:00:17.5]} 34. c3 {[%clk 0:01:38.1]} 34... e6 {[%clk
0:00:16.9]} 35. Rd7 {[%clk 0:01:37.4]} 35... Rc7 {[%clk 0:00:14.7]} 36. Rxc7
{[%clk 0:01:32]} 36... Qxc7 {[%clk 0:00:15.6]} 37. Na6 {[%clk 0:01:32.6]} 37...
Qa7 {[%clk 0:00:14.5]} 38. Nxb8 {[%clk 0:01:32.4]} 38... Qxb8 {[%clk 0:00:15.4]}
39. Qd6 {[%clk 0:01:30.6]} 39... Qa8 {[%clk 0:00:15.7]} 40. Qe7 {[%clk
0:01:28.1]} 40... Qa4 {[%clk 0:00:14.7]} 41. Rd7 {[%clk 0:01:27.3]} 41... Qc2
{[%clk 0:00:04.5]} 42. Qxf7 {[%clk 0:01:26.9]} 1-0

[Event "*** Titled Tuesday Blitz"]
[Site "Chess.com"]
[Date "2021.03.09"]
[Round "5"]
[White "manitodeplomo"]
[Black "Mbneu"]
[Result "1-0"]
[WhiteElo "2574"]
[BlackElo "2293"]
[TimeControl "180+1"]
[EndTime "10:57:52 PST"]
[Termination "manitodeplomo won by resignation"]

1. d4 {[%clk 0:03:00.9]} 1... Nf6 {[%clk 0:02:59.1]} 2. c4 {[%clk 0:03:00.7]}
2... c5 {[%clk 0:02:59.4]} 3. d5 {[%clk 0:03:00.7]} 3... e6 {[%clk 0:02:59.6]}
4. Nc3 {[%clk 0:03:00.4]} 4... exd5 {[%clk 0:02:59.9]} 5. cxd5 {[%clk
0:03:01.3]} 5... d6 {[%clk 0:03:00.1]} 6. e4 {[%clk 0:03:01.6]} 6... g6 {[%clk
0:03:00.5]} 7. h3 {[%clk 0:03:01.7]} 7... Bg7 {[%clk 0:03:00.6]} 8. Nf3 {[%clk
0:03:02.3]} 8... O-O {[%clk 0:03:00.7]} 9. Bd3 {[%clk 0:03:02.8]} 9... b5 {[%clk
0:02:59.8]} 10. Nxb5 {[%clk 0:03:00.9]} 10... Re8 {[%clk 0:02:59.5]} 11. O-O
{[%clk 0:02:56.8]} 11... Nxe4 {[%clk 0:02:53.3]} 12. Bxe4 {[%clk 0:02:57.7]}
12... Rxe4 {[%clk 0:02:52.8]} 13. Ng5 {[%clk 0:02:57.9]} 13... Re7 {[%clk
0:02:38.7]} 14. Qf3 {[%clk 0:02:53.6]} 14... Ba6 {[%clk 0:02:36.1]} 15. a4
{[%clk 0:02:52.2]} 15... Nd7 {[%clk 0:02:34.6]} 16. Ne4 {[%clk 0:02:40.2]} 16...
Ne5 {[%clk 0:02:30.5]} 17. Qg3 {[%clk 0:02:38.9]} 17... Bxb5 {[%clk 0:02:19.5]}
18. axb5 {[%clk 0:02:39.8]} 18... Qb6 {[%clk 0:02:15]} 19. Bg5 {[%clk
0:02:31.7]} 19... Rb7 {[%clk 0:01:58.9]} 20. Nf6+ {[%clk 0:02:26.2]} 20... Kh8
{[%clk 0:01:58.1]} 21. Qh4 {[%clk 0:02:24.7]} 21... h5 {[%clk 0:01:57.5]} 22. f4
{[%clk 0:02:03.6]} 22... c4+ {[%clk 0:01:56]} 23. Kh1 {[%clk 0:01:58.6]} 23...
Nd7 {[%clk 0:01:55.7]} 24. f5 {[%clk 0:01:48.6]} 24... Ne5 {[%clk 0:01:43]} 25.
g4 {[%clk 0:01:42]} 25... Qd4 {[%clk 0:01:37.1]} 26. Rf4 {[%clk 0:01:38.3]}
26... Qxb2 {[%clk 0:01:31.6]} 27. Raf1 {[%clk 0:01:36.5]} 27... Nd3 {[%clk
0:01:24.2]} 28. gxh5 {[%clk 0:01:32.2]} 28... gxf5 {[%clk 0:00:57.6]} 29. h6
{[%clk 0:01:28.6]} 29... Bf8 {[%clk 0:00:49.5]} 30. Rxf5 {[%clk 0:01:20.4]}
30... Ne5 {[%clk 0:00:45.9]} 31. Qe4 {[%clk 0:01:12.6]} 31... Ng6 {[%clk
0:00:36]} 32. Ng4 {[%clk 0:01:01]} 32... Qc3 {[%clk 0:00:11]} 33. Bf6+ {[%clk
0:00:59.2]} 33... Qxf6 {[%clk 0:00:10.4]} 34. Rxf6 {[%clk 0:00:57.5]} 1-0

[Event "*** Titled Tuesday Blitz"]
[Site "Chess.com"]
[Date "2021.03.09"]
[Round "5"]
[White "Cptn2"]
[Black "GelmanAlexander"]
[Result "1-0"]
[WhiteElo "2450"]
[BlackElo "2577"]
[TimeControl "180+1"]
[EndTime "10:57:54 PST"]
[Termination "Cptn2 won by resignation"]

1. e4 {[%clk 0:02:58.1]} 1... c5 {[%clk 0:02:59.3]} 2. Nf3 {[%clk 0:02:57.4]}
2... e6 {[%clk 0:02:59.4]} 3. d4 {[%clk 0:02:56.4]} 3... cxd4 {[%clk 0:02:59.4]}
4. Nxd4 {[%clk 0:02:57.3]} 4... a6 {[%clk 0:02:59.1]} 5. c4 {[%clk 0:02:56.3]}
5... d6 {[%clk 0:02:59]} 6. Nc3 {[%clk 0:02:56.5]} 6... Nf6 {[%clk 0:02:59.2]}
7. Be3 {[%clk 0:02:50.4]} 7... b6 {[%clk 0:02:58.2]} 8. Be2 {[%clk 0:02:50.6]}
8... Bb7 {[%clk 0:02:58.5]} 9. f3 {[%clk 0:02:50.6]} 9... Nbd7 {[%clk 0:02:59]}
10. O-O {[%clk 0:02:50.9]} 10... Rc8 {[%clk 0:02:59.5]} 11. Qd2 {[%clk
0:02:50.7]} 11... h6 {[%clk 0:02:58.9]} 12. Rac1 {[%clk 0:02:47.8]} 12... g5
{[%clk 0:02:59.1]} 13. Rfe1 {[%clk 0:02:36.6]} 13... Rg8 {[%clk 0:02:58]} 14. h3
{[%clk 0:02:28]} 14... Ne5 {[%clk 0:02:55.6]} 15. b3 {[%clk 0:02:24.6]} 15...
Nfd7 {[%clk 0:02:44.6]} 16. Kh1 {[%clk 0:02:16.2]} 16... h5 {[%clk 0:02:43]} 17.
f4 {[%clk 0:02:14.8]} 17... gxf4 {[%clk 0:02:41.6]} 18. Bxf4 {[%clk 0:02:15.7]}
18... h4 {[%clk 0:02:31.9]} 19. Rf1 {[%clk 0:02:09.2]} 19... Qe7 {[%clk
0:02:23.4]} 20. Bh5 {[%clk 0:02:02]} 20... Nf6 {[%clk 0:02:06.3]} 21. Bg5 {[%clk
0:01:59]} 21... Rxg5 {[%clk 0:01:37.1]} 22. Qxg5 {[%clk 0:01:59.9]} 22... Nxe4
{[%clk 0:01:37.3]} 23. Nxe4 {[%clk 0:01:54.5]} 23... Bxe4 {[%clk 0:01:36.1]} 24.
Nxe6 {[%clk 0:01:31.5]} 24... Qxe6 {[%clk 0:01:21.2]} 25. Rce1 {[%clk
0:01:31.3]} 25... Be7 {[%clk 0:00:59.6]} 26. Qe3 {[%clk 0:01:12.3]} 26... Ba8
{[%clk 0:00:36.1]} 27. Bxf7+ {[%clk 0:01:03.2]} 27... Qxf7 {[%clk 0:00:32.3]}
28. Rxf7 {[%clk 0:01:02.2]} 28... Kxf7 {[%clk 0:00:33.2]} 29. Qf4+ {[%clk
0:00:44.2]} 29... Ke6 {[%clk 0:00:31.5]} 30. Qg4+ {[%clk 0:00:42.4]} 30... Kf7
{[%clk 0:00:23.1]} 31. Qxc8 {[%clk 0:00:43.3]} 31... Bc6 {[%clk 0:00:22.8]} 32.
Rxe5 {[%clk 0:00:42.6]} 1-0